bitfinex/quotes_SOLUSD_20241105
["timestamp","ask_amount","ask_price","bid_price","bid_amount"]
[1730833531882,10.96380229,167.43,167.38,12.0118]
[1730833532293,10.96380229,167.43,167.38,22.97560229]
[1730833532900,10.96380229,167.41,167.36,31.87670229]
[1730833533078,10.96380229,167.4,167.36,20.9129]
[1730833533408,49.39599437,167.44,167.37,10.96380229]
[1730833533704,10.96380229,167.43,167.37,10.96380229]
[1730833536297,5.9719,167.45,167.41,10.96380229]
[1730833537202,55.36789437,167.45,167.4,10.96380229]
[1730833537382,5.9719,167.45,167.41,10.96380229]
[1730833538809,5.9719,167.45,167.42,10.96380229]
[1730833539011,5.9712,167.47,167.42,10.96380229]
[1730833539191,10.96380229,167.43,167.35,22.0376]
[1730833539517,10.96380229,167.41,167.36,10.96380229]
[1730833539895,10.96380229,167.42,167.36,10.96380229]
[1730833540207,49.39599437,167.44,167.35,22.0376]
[1730833540208,49.39599437,167.44,167.39,10.96380229]
[1730833540516,49.39599437,167.44,167.38,10.96380229]
[1730833540517,5.9726,167.43,167.38,10.96380229]
[1730833540904,16.93640229,167.43,167.38,10.96380229]
[1730833541286,10.96380229,167.41,167.36,10.96380229]
[1730833541492,10.96380229,167.42,167.37,10.96380229]
[1730833541891,10.96380229,167.42,167.36,10.96380229]
[1730833542087,10.96380229,167.41,167.35,36.9763]
[1730833542288,5.9737,167.4,167.35,47.94010229]
[1730833542505,5.9737,167.4,167.36,10.96380229]
[1730833543613,5.9733,167.41,167.36,10.96380229]
[1730833544007,5.9733,167.41,167.35,36.9763]
[1730833544008,5.9733,167.41,167.37,10.96380229]
[1730833546331,49.39599437,167.4,167.34,10.96380229]
[1730833546498,10.96380229,167.39,167.31,37.1793]
[1730833546703,60.35979666,167.35,167.3,0.3076131]
[1730833546899,10.96380229,167.34,167.3,0.3076131]
[1730833547820,49.39599437,167.35,167.3,0.3076131]
[1730833547821,10.96380229,167.31,167.3,0.3076131]
[1730833548029,34.74068629,167.31,167.3,0.3076131]
[1730833548395,40.71758629,167.31,167.3,0.3076131]
[1730833549220,40.91758629,167.31,167.3,0.3076131]
[1730833549411,47.13796169,167.31,167.3,0.3076131]
[1730833549623,62.17566169,167.31,167.3,1.31e-05]
[1730833551203,49.39599437,167.22,167.21,0.3076131]
[1730833552934,49.39599437,167.26,167.21,17.49179079]
[1730833553125,5.979,167.25,167.22,17.18417769]
[1730833553813,5.979,167.25,167.21,17.49179079]
[1730833554909,5.9783,167.27,167.23,17.18417769]
[1730833559633,5.9783,167.27,167.24,17.18417769]
[1730833560835,55.37319437,167.3,167.26,17.18417769]
[1730833561030,55.37319437,167.3,167.27,17.18417769]
[1730833561813,5.9769,167.31,167.29,17.18417769]
[1730833562345,5.9765,167.33,167.29,17.18417769]
[1730833562930,49.39599437,167.32,167.29,17.18417769]
[1730833563817,5.9762,167.33,167.29,17.18417769]
[1730833564027,5.9762,167.33,167.3,17.18417769]
[1730833564933,5.9762,167.33,167.31,17.18417769]
[1730833566323,23.776884,167.34,167.31,17.18417769]
[1730833566734,5.9755,167.35,167.31,17.18417769]
[1730833566916,5.9755,167.35,167.32,17.18417769]
[1730833567239,55.37149437,167.35,167.32,17.18417769]
[1730833569214,5.9755,167.35,167.32,17.18417769]
[1730833570132,5.9751,167.36,167.32,17.18417769]
[1730833571241,5.9751,167.36,167.31,17.18417769]
[1730833572119,66.58017206,167.35,167.29,17.18417769]
[1730833572422,49.39599437,167.35,167.3,17.18417769]
[1730833572625,49.39599437,167.35,167.31,17.18417769]
[1730833574342,5.9758,167.34,167.31,17.18417769]
[1730833574543,5.9758,167.34,167.3,17.18417769]
[1730833574713,5.9758,167.34,167.29,17.18417769]
[1730833575338,5.9758,167.34,167.3,17.18417769]
[1730833575843,5.9758,167.34,167.32,10.98329674]
[1730833576044,49.39599437,167.35,167.32,10.98329674]
[1730833576255,49.39599437,167.35,167.33,10.98329674]
[1730833576535,5.9754,167.36,167.34,10.98329674]
[1730833576737,5.9746,167.38,167.35,10.98329674]
[1730833577315,5.9746,167.38,167.35,17.15574888]
[1730833577727,5.9746,167.38,167.34,17.15574888]
[1730833578639,49.39599437,167.37,167.33,17.15574888]
[1730833578822,49.39599437,167.35,167.31,17.15574888]
[1730833579027,49.39599437,167.35,167.3,32.80444888]
[1730833579028,66.55174325,167.35,167.3,32.80444888]
[1730833579821,49.39599437,167.35,167.3,32.80444888]
[1730833580145,5.9758,167.34,167.3,32.80444888]
[1730833580939,5.9758,167.34,167.31,17.15574888]
[1730833581329,5.9758,167.34,167.32,17.15574888]
[1730833584045,5.9758,167.34,167.31,17.15574888]
[1730833585062,15.036,167.38,167.33,17.15574888]
[1730833585063,5.9744,167.38,167.33,17.15574888]
[1730833585353,49.39599437,167.37,167.32,17.15574888]
[1730833586340,49.39599437,167.37,167.33,17.15574888]
[1730833587642,5.9751,167.36,167.33,17.15574888]
[1730833590449,5.9751,167.36,167.35,17.15574888]
[1730833590651,23.776884,167.38,167.35,17.15574888]
[1730833590837,5.9747,167.38,167.35,17.15574888]
[1730833591239,5.9747,167.38,167.36,17.15574888]
[1730833591430,49.39599437,167.41,167.36,17.15574888]
[1730833591751,5.974,167.4,167.37,17.15574888]
[1730833592232,5.974,167.4,167.36,17.15574888]
[1730833595243,55.36749437,167.46,167.39,17.15574888]
[1730833595446,55.36749437,167.46,167.41,17.15574888]
[1730833596775,49.39599437,167.45,167.41,17.15574888]
[1730833597853,5.9722,167.44,167.41,17.15574888]
[1730833598054,5.9722,167.44,167.4,17.15574888]
[1730833598666,5.9722,167.44,167.41,17.15574888]
[1730833599250,5.9722,167.44,167.4,17.15574888]
[1730833599453,5.9722,167.44,167.4,10.97329918]
[1730833599648,5.9722,167.44,167.41,10.97329918]
[1730833600272,5.9722,167.44,167.42,10.97329918]
[1730833600566,10.97329918,167.47,167.37,20.9116]
[1730833600567,5.9712,167.47,167.43,10.97329918]
[1730833600779,49.39599437,167.45,167.38,6.52]
[1730833600974,60.36929355,167.43,167.36,15.0742]
[1730833601146,0.2,167.46,167.36,15.0742]
[1730833601147,49.39599437,167.41,167.37,10.97329918]
[1730833601473,49.39599437,167.41,167.36,15.0742]
[1730833601681,49.39599437,167.41,167.36,26.04749918]
[1730833601682,5.9737,167.4,167.36,26.04749918]
[1730833602045,5.9737,167.4,167.37,10.97329918]
[1730833602962,5.9737,167.4,167.35,10.97329918]
[1730833603170,49.39599437,167.39,167.34,10.97329918]
[1730833603356,49.39599437,167.37,167.32,15.1031]
[1730833603549,66.55505614,167.37,167.32,17.15906177]
[1730833603743,49.39599437,167.35,167.3,23.51266177]
[1730833603965,66.55505614,167.35,167.29,17.15906177]
[1730833604187,17.15906177,167.34,167.29,17.15906177]
[1730833604348,49.39599437,167.33,167.29,17.15906177]
[1730833604653,49.39599437,167.33,167.28,32.26216177]
[1730833604854,66.55505614,167.33,167.28,32.26216177]
[1730833605051,5.9765,167.32,167.28,15.1031]
[1730833606775,5.9765,167.32,167.28,32.26216177]
[1730833609161,5.9765,167.32,167.3,17.15906177]
[1730833609660,5.9765,167.32,167.29,17.15906177]
[1730833609983,5.9765,167.32,167.28,17.15906177]
[1730833610179,66.55505614,167.31,167.25,17.15906177]
[1730833610350,17.15906177,167.3,167.25,17.15906177]
[1730833610546,17.15906177,167.3,167.21,12.4221131]
[1730833610547,49.39599437,167.27,167.23,17.15906177]
[1730833610750,49.39599437,167.27,167.21,23.60097487]
[1730833610751,17.15906177,167.26,167.21,23.60097487]
[1730833610983,66.55505614,167.27,167.22,17.15906177]
[1730833611150,5.9787,167.26,167.22,17.15906177]
[1730833612077,23.13776177,167.26,167.21,23.60097487]
[1730833612668,5.9787,167.26,167.21,23.60097487]
[1730833613382,5.9787,167.26,167.21,0.3076131]
[1730833613383,66.55505614,167.25,167.21,0.3076131]
[1730833614057,66.55505614,167.23,167.21,0.3076131]
[1730833614677,49.39599437,167.23,167.21,0.3076131]
[1730833615894,5.9801,167.22,167.21,0.3076131]
[1730833616069,55.37499437,167.25,167.21,17.46667487]
[1730833617061,55.37499437,167.25,167.21,0.3076131]
[1730833617569,55.37499437,167.25,167.21,17.46667487]
[1730833617785,55.37499437,167.25,167.21,0.3076131]
[1730833618462,55.37499437,167.25,167.21,17.46667487]
[1730833618782,5.979,167.25,167.21,17.46667487]
[1730833620176,5.979,167.25,167.22,17.15906177]
[1730833620571,5.979,167.25,167.21,17.46667487]
[1730833620768,5.978,167.28,167.23,17.15906177]
[1730833621157,5.9775,167.3,167.21,21.2392131]
[1730833621476,5.9775,167.3,167.26,17.15906177]
[1730833622111,5.9775,167.3,167.27,17.15906177]
[1730833622391,5.9775,167.3,167.26,17.15906177]
[1730833622682,66.55505614,167.29,167.23,17.15906177]
[1730833622887,17.15906177,167.28,167.23,17.15906177]
[1730833623872,66.55505614,167.29,167.23,17.15906177]
[1730833624071,5.978,167.28,167.24,17.15906177]
[1730833624270,5.9769,167.31,167.22,22.548]
[1730833624476,5.9769,167.31,167.28,17.15906177]
[1730833625080,5.9769,167.31,167.29,17.15906177]
[1730833625462,5.9769,167.31,167.28,17.15906177]
[1730833625968,81.49545614,167.34,167.28,17.15906177]
[1730833626168,5.9762,167.33,167.3,17.15906177]
[1730833626368,5.9762,167.33,167.31,17.15906177]
[1730833626568,5.9762,167.33,167.29,17.15906177]
[1730833626984,5.9762,167.33,167.3,17.15906177]
[1730833627165,17.15906177,167.36,167.3,17.15906177]
[1730833627360,5.9755,167.35,167.3,17.15906177]
[1730833628074,72.53055614,167.35,167.29,33.03096177]
[1730833629886,17.15906177,167.34,167.29,33.03096177]
[1730833630870,5.9762,167.33,167.29,33.03096177]
[1730833631997,5.9762,167.33,167.29,15.8719]
[1730833633303,17.15906177,167.32,167.27,17.15906177]
[1730833633500,5.9762,167.33,167.28,17.15906177]
[1730833633692,5.9762,167.33,167.29,17.15906177]
[1730833634212,14.9377,167.37,167.26,20.9252]
[1730833634213,17.15906177,167.36,167.3,17.15906177]
[1730833634389,17.15906177,167.34,167.29,17.15906177]
[1730833634601,17.15906177,167.33,167.28,17.15906177]
[1730833635403,5.9765,167.32,167.28,17.15906177]
[1730833635906,5.9765,167.32,167.27,23.13726177]
[1730833638510,5.9765,167.32,167.27,17.15906177]
[1730833639100,17.15906177,167.3,167.25,15.5527]
[1730833639405,17.15906177,167.29,167.25,15.5527]
[1730833640108,17.15906177,167.27,167.21,33.44797487]
[1730833640602,5.9787,167.26,167.22,17.15906177]
[1730833641808,5.9787,167.26,167.23,17.15906177]
[1730833642395,5.978,167.28,167.23,17.15906177]
[1730833643608,72.53305614,167.28,167.22,17.15906177]
[1730833644194,17.15906177,167.27,167.22,17.15906177]
[1730833644514,5.9787,167.26,167.22,17.15906177]
[1730833645809,5.9787,167.26,167.21,33.44797487]
[1730833646501,5.9787,167.26,167.22,17.15906177]
[1730833647217,23.13776177,167.26,167.21,33.44797487]
[1730833647510,5.9787,167.26,167.21,33.44797487]
[1730833647696,5.9787,167.26,167.21,39.42837487]
[1730833648494,23.13776177,167.26,167.21,16.2889131]
[1730833648697,72.53375614,167.26,167.21,16.2889131]
[1730833649208,17.15906177,167.25,167.21,16.2889131]
[1730833649386,72.53375614,167.26,167.21,16.2889131]
[1730833649589,72.53375614,167.26,167.21,33.44797487]
[1730833650205,72.53375614,167.26,167.21,16.2889131]
[1730833650809,23.13776177,167.26,167.21,16.2889131]
[1730833651114,23.13776177,167.26,167.21,33.44797487]
[1730833651904,72.53375614,167.26,167.21,33.44797487]
[1730833652618,72.53375614,167.26,167.21,16.2889131]
[1730833653510,66.37339221,167.26,167.21,0.3076131]
[1730833653718,16.97739784,167.26,167.21,0.3076131]
[1730833654213,16.97739784,167.26,167.21,11.30631094]
[1730833655217,66.37339221,167.26,167.21,11.30631094]
[1730833655400,66.37339221,167.26,167.21,0.3076131]
[1730833655600,16.97739784,167.26,167.21,0.3076131]
[1730833656211,16.97739784,167.26,167.21,11.30631094]
[1730833656727,5.9787,167.26,167.23,10.99869784]
[1730833657415,5.9776,167.29,167.25,10.99869784]
[1730833657614,5.9772,167.3,167.25,10.99869784]
[1730833658110,16.97589784,167.3,167.24,16.97799784]
[1730833658521,10.99869784,167.29,167.24,10.99869784]
[1730833658710,10.99869784,167.29,167.23,27.08789784]
[1730833659637,10.99869784,167.29,167.21,175.2588131]
[1730833659638,5.9794,167.24,167.21,160.3076131]
[1730833659814,16.97809784,167.24,167.21,0.3076131]
[1730833660326,10.99869784,167.23,167.21,0.3076131]
[1730833661529,17.19138609,167.23,167.21,0.3076131]
[1730833661698,5.9801,167.22,167.21,0.3076131]
[1730833662122,23.17148609,167.22,167.21,0.3076131]
[1730833664629,96.34436446,167.22,167.21,0.3076131]
[1730833666924,5.9801,167.22,167.21,0.3076131]
[1730833667115,23.17148609,167.22,167.21,0.3076131]
[1730833667812,5.9801,167.22,167.21,0.3076131]
[1730833668419,5.9797,167.23,167.21,0.3076131]
[1730833670626,17.19138609,167.22,167.21,0.3076131]
[1730833671724,23.17148609,167.22,167.21,0.3076131]
[1730833672438,5.9801,167.22,167.21,0.3076131]
[1730833672837,23.17148609,167.22,167.21,0.3076131]
[1730833678134,72.56748046,167.22,167.21,0.3076131]
[1730833678439,96.34436446,167.22,167.21,0.3076131]
[1730833681452,72.56748046,167.22,167.21,0.3076131]
[1730833682545,5.9801,167.22,167.21,0.3076131]
[1730833682743,5.9798,167.23,167.21,0.3076131]
[1730833683225,5.9794,167.24,167.21,0.3076131]
[1730833683753,16.97951912,167.24,167.21,0.3076131]
[1730833683920,11.00011912,167.23,167.21,0.3076131]
[1730833684677,16.97951912,167.24,167.21,0.3076131]
[1730833684832,5.9783,167.27,167.22,11.00011912]
[1730833685033,10.71472038,167.3,167.26,11.00011912]
[1730833685248,10.71472038,167.3,167.29,11.00011912]
[1730833686047,10.71472038,167.3,167.28,27.47791912]
[1730833686360,10.71472038,167.3,167.28,16.4778]
[1730833686561,16.97701912,167.31,167.28,16.4778]
[1730833686851,11.00011912,167.3,167.24,22.496]
[1730833687166,60.39611349,167.3,167.24,33.49611912]
[1730833687453,5.9776,167.29,167.24,39.67295317]
[1730833687755,5.9776,167.29,167.25,17.17695317]
[1730833688254,5.9776,167.29,167.24,39.67295317]
[1730833688451,5.9776,167.29,167.25,17.17695317]
[1730833689748,23.15455317,167.29,167.24,39.67295317]
[1730833691134,5.9776,167.29,167.25,17.17695317]
[1730833696443,49.39599437,167.32,167.28,17.17695317]
[1730833696769,17.17695317,167.31,167.25,17.17695317]
[1730833697344,17.17695317,167.3,167.24,45.65225317]
[1730833697730,5.9776,167.29,167.24,45.65225317]
[1730833700330,23.15385317,167.31,167.25,17.17695317]
[1730833703660,23.15385317,167.31,167.26,17.17695317]
[1730833703967,5.9769,167.31,167.28,17.17695317]
[1730833704141,5.9769,167.31,167.27,17.17695317]
[1730833704341,5.9769,167.31,167.26,17.17695317]
[1730833704541,23.15385317,167.31,167.26,17.17695317]
[1730833705143,5.9769,167.31,167.26,17.17695317]
[1730833706558,5.9765,167.32,167.27,17.17695317]
[1730833707144,23.15345317,167.32,167.26,32.12365317]
[1730833709469,16.96708026,167.32,167.26,25.93728026]
[1730833710742,5.9765,167.32,167.27,10.99058026]
[1730833712700,5.9762,167.33,167.28,10.99058026]
[1730833712992,5.9762,167.33,167.27,10.99058026]
[1730833714078,5.9762,167.33,167.28,10.99058026]
[1730833715961,5.9762,167.33,167.27,16.96888026]
[1730833716376,5.9762,167.33,167.28,10.99058026]
[1730833716679,5.9762,167.33,167.29,10.99058026]
[1730833717572,10.99058026,167.36,167.3,10.99058026]
[1730833717776,10.99058026,167.36,167.3,27.63828026]
[1730833718195,10.99058026,167.34,167.3,16.6477]
[1730833718373,16.96648026,167.34,167.3,16.6477]
[1730833718575,10.99058026,167.33,167.28,160.0]
[1730833719069,10.99058026,167.32,167.28,160.0]
[1730833719271,10.99058026,167.32,167.26,192.77678026]
[1730833719792,10.99058026,167.33,167.27,10.99058026]
[1730833720289,16.96708026,167.32,167.26,192.77678026]
[1730833721081,10.99058026,167.31,167.26,175.8076]
[1730833721999,10.99058026,167.29,167.24,6.5715]
[1730833723297,62.7849905,167.37,167.28,10.99058026]
[1730833723597,15.0351,167.4,167.32,10.99058026]
[1730833723598,20.9091,167.39,167.32,10.99058026]
[1730833723771,10.99058026,167.38,167.32,10.99058026]
[1730833724082,5.9747,167.37,167.32,10.99058026]
[1730833725690,16.96528026,167.37,167.32,10.99058026]
[1730833726071,16.96528026,167.37,167.31,10.99058026]
[1730833727091,10.99058026,167.36,167.31,10.99058026]
[1730833728077,5.9755,167.35,167.31,10.99058026]
[1730833729097,16.96608026,167.35,167.3,10.99058026]
[1730833731193,10.99058026,167.36,167.3,10.99058026]
[1730833731393,10.99058026,167.35,167.29,185.93468026]
[1730833731599,10.99058026,167.35,167.3,10.99058026]
[1730833731899,10.99058026,167.36,167.31,10.99058026]
[1730833732211,16.96528026,167.37,167.31,10.99058026]
[1730833732568,16.96528026,167.37,167.32,10.99058026]
[1730833733171,16.96528026,167.37,167.31,10.99058026]
[1730833733777,16.96528026,167.37,167.3,12.3844]
[1730833733998,10.99058026,167.36,167.3,12.3844]
[1730833734204,5.9755,167.35,167.3,23.37498026]
[1730833735794,10.99058026,167.35,167.3,23.37498026]
[1730833736001,10.99058026,167.35,167.3,6.4072]
[1730833736382,10.99058026,167.36,167.31,10.99058026]
[1730833737707,5.9752,167.36,167.32,10.99058026]
[1730833738290,14.9346,167.4,167.31,16.1126]
[1730833738291,10.99058026,167.4,167.34,10.99058026]
[1730833739102,10.99058026,167.4,167.31,176.1126]
[1730833739309,10.99058026,167.39,167.34,10.99058026]
[1730833740509,10.99058026,167.4,167.34,10.99058026]
[1730833740703,5.9737,167.4,167.35,10.99058026]
[1730833741212,16.96428026,167.4,167.34,10.99058026]
[1730833742089,16.96428026,167.4,167.35,10.99058026]
[1730833742598,5.9737,167.4,167.35,10.99058026]
[1730833743296,16.96428026,167.4,167.35,10.99058026]
[1730833744211,16.96428026,167.4,167.34,16.96628026]
[1730833744413,16.96428026,167.4,167.34,10.99058026]
[1730833745408,5.9737,167.4,167.35,10.99058026]
[1730833745609,16.96428026,167.4,167.35,10.99058026]
[1730833746188,5.9737,167.4,167.35,10.99058026]
[1730833746615,16.96428026,167.4,167.35,10.99058026]
[1730833746793,16.96428026,167.4,167.34,16.96628026]
[1730833747601,16.96428026,167.4,167.34,10.99058026]
[1730833748017,16.96428026,167.4,167.35,10.99058026]
[1730833748192,5.9737,167.4,167.35,10.99058026]
[1730833748509,16.96428026,167.4,167.35,10.99058026]
[1730833748898,14.9313,167.44,167.37,10.99058026]
[1730833749099,16.96278026,167.44,167.38,10.99058026]
[1730833749915,10.99058026,167.43,167.38,10.99058026]
[1730833750092,10.99058026,167.42,167.36,10.99058026]
[1730833751314,5.9733,167.41,167.36,10.99058026]
[1730833751502,5.9733,167.41,167.37,10.99058026]
[1730833751700,5.9733,167.41,167.36,10.99058026]
[1730833752234,5.9733,167.41,167.37,10.99058026]
[1730833754415,16.96388026,167.41,167.36,10.99058026]
[1730833754995,16.96388026,167.41,167.36,170.99058026]
[1730833755192,10.99058026,167.38,167.36,160.0]
[1730833755425,10.99058026,167.37,167.32,170.99058026]
[1730833755717,10.99058026,167.37,167.31,187.10318026]
[1730833757101,5.9751,167.36,167.32,10.99058026]
[1730833758630,10.99058026,167.34,167.31,160.0]
[1730833758835,10.99058026,167.32,167.31,160.0]
[1730833759123,10.99058026,167.32,167.27,192.11298026]
[1730833759299,16.96728026,167.32,167.27,192.11298026]
[1730833760415,16.96728026,167.32,167.27,186.13468026]
[1730833760627,10.99058026,167.31,167.27,15.1441]
[1730833760797,10.99058026,167.3,167.26,6.4749]
[1730833761525,10.99058026,167.3,167.25,191.91698026]
[1730833761821,16.96798026,167.3,167.24,10.99058026]
[1730833762022,16.96798026,167.3,167.25,10.99058026]
[1730833762237,5.9774,167.3,167.25,10.99058026]
[1730833768417,16.96678026,167.33,167.27,10.99058026]
[1730833768728,20.0,167.33,167.28,10.99058026]
[1730833768932,30.99058026,167.33,167.28,10.99058026]
[1730833769103,16.96658026,167.34,167.29,10.99058026]
[1730833769429,5.976,167.34,167.29,10.99058026]
[1730833770505,16.96658026,167.34,167.29,10.99058026]
[1730833775042,16.96658026,167.34,167.28,10.99058026]
[1730833776113,10.99058026,167.33,167.28,10.99058026]
[1730833776631,10.99058026,167.34,167.28,10.99058026]
[1730833776814,10.99058026,167.32,167.27,25.93618026]
[1730833777014,10.99058026,167.32,167.26,10.99058026]
[1730833778343,5.9769,167.31,167.27,10.99058026]
[1730833778633,20.0,167.32,167.27,10.99058026]
[1730833778811,30.99058026,167.32,167.27,10.99058026]
[1730833779019,5.9762,167.33,167.28,10.99058026]
[1730833779321,10.99058026,167.34,167.29,10.99058026]
[1730833779521,20.0,167.35,167.3,10.99058026]
[1730833780130,30.99058026,167.35,167.29,10.99058026]
[1730833781130,5.9758,167.34,167.29,10.99058026]
[1730833783318,16.96638026,167.34,167.25,14.9476]
[1730833783524,16.96638026,167.34,167.29,10.99058026]
[1730833785343,16.96638026,167.34,167.28,16.96848026]
[1730833791128,16.96638026,167.34,167.28,10.99058026]
[1730833792850,5.9758,167.34,167.29,10.99058026]
[1730833793020,20.0,167.36,167.31,10.99058026]
[1730833793220,20.0,167.36,167.32,10.99058026]
[1730833793421,20.0,167.37,167.32,10.99058026]
[1730833794123,25.975,167.37,167.32,10.99058026]
[1730833797725,5.974,167.39,167.35,10.99058026]
[1730833798034,5.974,167.39,167.37,10.99058026]
[1730833798343,5.974,167.39,167.36,10.99058026]
[1730833798942,5.9726,167.43,167.38,10.99058026]
[1730833799932,5.9726,167.43,167.39,10.99058026]
[1730833800152,5.9715,167.46,167.41,10.99058026]
[1730833800447,16.96108026,167.49,167.43,10.99058026]
[1730833801449,5.9712,167.47,167.42,10.99058026]
[1730833801661,16.96178026,167.47,167.41,10.99058026]
[1730833802023,5.9712,167.47,167.42,10.99058026]
[1730833803353,10.99058026,167.44,167.37,20.0]
[1730833803527,10.99058026,167.43,167.38,10.99058026]
[1730833804041,10.99058026,167.44,167.38,10.99058026]
[1730833804638,5.9726,167.43,167.38,10.99058026]
[1730833804846,16.96318026,167.43,167.38,10.99058026]
[1730833805346,5.9726,167.43,167.39,10.99058026]
[1730833806446,16.96318026,167.43,167.38,10.99058026]
[1730833806655,10.99058026,167.41,167.36,174.9378]
[1730833806853,10.99058026,167.41,167.36,10.99058026]
[1730833807447,10.99058026,167.4,167.35,176.0441]
[1730833807625,10.99058026,167.4,167.35,160.0]
[1730833807826,70.30019437,167.43,167.33,10.99058026]
[1730833807827,10.99058026,167.39,167.33,10.99058026]
[1730833808146,10.99058026,167.36,167.31,21.303]
[1730833808557,5.9755,167.35,167.31,21.303]
[1730833808850,5.9755,167.35,167.31,15.2081]
[1730833809155,5.9755,167.35,167.31,26.19868026]
[1730833809930,16.96558026,167.37,167.31,26.19868026]
[1730833812160,5.975,167.37,167.34,10.99058026]
[1730833812457,5.975,167.37,167.32,10.99058026]
[1730833813263,5.975,167.37,167.32,16.96708026]
[1730833813835,5.975,167.37,167.33,10.99058026]
[1730833814035,5.9744,167.38,167.34,10.99058026]
[1730833814236,36.96428026,167.4,167.35,10.99058026]
[1730833814448,36.96428026,167.4,167.34,10.99058026]
[1730833816049,10.99058026,167.37,167.32,160.0]
[1730833816444,10.99058026,167.37,167.32,170.99058026]
[1730833817472,5.9751,167.36,167.32,170.99058026]
[1730833817764,5.9751,167.36,167.32,10.99058026]
[1730833818669,5.9751,167.36,167.31,192.17548026]
[1730833818864,10.99058026,167.35,167.31,175.2081]
[1730833819050,10.99058026,167.35,167.31,160.0]
[1730833819361,16.96568026,167.36,167.31,170.99058026]
[1730833819744,16.96568026,167.36,167.31,160.0]
[1730833820955,5.9758,167.34,167.31,160.0]
[1730833821156,10.99058026,167.33,167.29,160.0]
[1730833821466,10.99058026,167.32,167.27,21.5548]
[1730833823574,5.9769,167.31,167.27,21.5548]
[1730833823743,10.99058026,167.3,167.26,160.0]
[1730833823945,10.99058026,167.3,167.24,1.03560623]
[1730833823946,10.99058026,167.3,167.24,10.99058026]
[1730833825062,5.9776,167.29,167.24,10.99058026]
[1730833825267,10.99058026,167.32,167.27,10.99058026]
[1730833826243,5.9769,167.31,167.27,10.99058026]
[1730833827548,5.9769,167.31,167.27,17.17244931]
[1730833827949,5.9769,167.31,167.26,17.17244931]
[1730833828368,17.17244931,167.3,167.25,17.17244931]
[1730833828743,23.14934931,167.31,167.25,17.17244931]
[1730833828945,23.14934931,167.31,167.26,17.17244931]
[1730833830244,5.9776,167.29,167.25,17.17244931]
[1730833831876,17.17244931,167.28,167.23,176.2161]
[1730833832074,17.17244931,167.26,167.21,160.3076131]
[1730833832248,23.15144931,167.25,167.21,0.3076131]
[1730833832960,17.17244931,167.23,167.21,0.3076131]
[1730833834672,5.9801,167.22,167.21,0.3076131]
[1730833841154,20.0,167.23,167.21,0.3076131]
[1730833842255,5.9801,167.22,167.21,0.3076131]
[1730833844074,25.9794,167.24,167.21,0.3076131]
[1730833844279,43.15184931,167.24,167.21,0.3076131]
[1730833844481,17.17244931,167.23,167.21,0.3076131]
[1730833846161,5.9797,167.23,167.21,0.3076131]
[1730833847059,20.0,167.24,167.21,0.3076131]
[1730833847487,25.9795,167.24,167.21,0.3076131]
[1730833847785,5.9787,167.26,167.22,17.17244931]
[1730833848089,5.9787,167.26,167.21,17.48006241]
[1730833849167,17.17244931,167.23,167.21,0.3076131]
[1730833849491,11.00184212,167.23,167.21,0.3076131]
[1730833850284,5.9797,167.23,167.21,0.3076131]
[1730833854384,49.39599437,167.24,167.21,0.3076131]
[1730833854385,54.77872612,167.25,167.21,0.3076131]
[1730833854686,5.9794,167.24,167.21,0.3076131]
[1730833854865,5.9794,167.24,167.21,11.30945522]
[1730833855479,5.9794,167.24,167.21,0.3076131]
[1730833855685,44.8331,167.29,167.23,11.00184212]
[1730833855686,20.0,167.27,167.23,11.00184212]
[1730833855866,20.0,167.27,167.21,6.2878131]
[1730833855867,5.978,167.28,167.26,11.00184212]
[1730833856074,5.978,167.28,167.21,6.2878131]
[1730833856263,5.978,167.28,167.24,11.00184212]
[1730833856458,5.978,167.28,167.23,11.00184212]
[1730833857176,5.978,167.28,167.24,11.00184212]
[1730833857785,5.978,167.28,167.23,11.00184212]
[1730833859583,60.39783649,167.3,167.24,11.00184212]
[1730833859791,20.0,167.28,167.24,11.00184212]
[1730833861177,5.9776,167.29,167.25,11.00184212]
[1730833861487,5.9776,167.29,167.26,11.00184212]
[1730833861793,20.0,167.3,167.26,11.00184212]
[1730833862669,5.9769,167.31,167.28,11.00184212]
[1730833863192,5.9769,167.31,167.27,11.00184212]
[1730833863565,5.9769,167.31,167.26,11.00184212]
[1730833864088,80.39783649,167.3,167.24,171.00184212]
[1730833864273,80.39783649,167.3,167.24,11.00184212]
[1730833865277,5.9776,167.29,167.24,11.00184212]
[1730833868489,16.97944212,167.29,167.24,11.00184212]
[1730833870086,5.9776,167.29,167.24,11.00184212]
[1730833870378,16.97944212,167.29,167.23,11.00184212]
[1730833870583,16.97944212,167.29,167.24,11.00184212]